Workbook

Sheet PORTADA

Sheet INSTRUCCIONES
A2: Herramienta de Diagnóstico Rápido Inicial Instrucciones
A4: Metodología | B4: Reunión presencial, visita a las instalaciones y verbalizaciones con trabajadores y supervisores.
A6: Paso a paso | B6: En la misma visita en que se definan los indicadores con el Director, Coordinador o Encargado SST, también estime los procesos o áreas más críticas y realice una inspección empleando la tercera parte de la HERRAMIENTA DE DIAGNÓSTICO RÁPIDO INICIAL, correspondiente al Análisis por Proceso. Puede imprimir varios ejemplares del Formato de campo directamente desde este archivo Excel, según el número de procesos que deba visitar. Una vez se encuentre en las instalaciones y haciendo uso de los formatos: Diligencie el Nombre del Proceso Crítico según sea denominado en la empresa, luego mediante observación y verbalización con los trabajadores y supervisor involucrados defina la tarea crítica de MMC, si es necesario registre observaciones importantes que considere acerca de la tarea. Defina el número de expuestos corroborando la información con los trabajadores y supervisores y, teniendo en cuenta el número de turnos u horarios en caso de que esto aplique. Diligencie el nivel y aceptabilidad del riesgo biomecánico con el cual ha sido valorada la tarea en la matriz de identificación de peligros e indague con los trabadores y supervisores, los controles representativos ya adelantados por la empresa para la prevención de accidentes por sobresfuerzos y aparición de DME relacionados con la tarea; en caso afirmativo describa en las observaciones del formato dichos avances. Continúe con el diligenciamiento del formato seleccionando la opción que corresponda a la realidad observada en cuanto a la ejecución de la tarea crítica por sobresfuerzos seleccionada. Cada vez que tenga dudas corrobore la información con los trabajadores y supervisores y, con el Director, Coordinador o Encargado SST, según corresponda, solicitando evidencias documentales y tangibles de ser necesario y, realizando registros de video y fotografía de momentos de mayor exposición que pueden requerirse para posteriores análisis de los peligros y presentaciones.
B7: Al finalizar la aplicación del formato concluya observaciones sobre la problemática de MMC y proponga estrategias generales de intervención, para esto puede basarse en las sugeridas en el Programa para la prevención de peligros asociados a la manipulación manual de cargas y la movilización manual de pacientes. Digitalice la información en el archivo Excel de la herramienta, en el mismo donde previamente registro la información ATEL, básicamente se trata de transcribir los datos registrados en los Formatos de campo, teniendo en cuenta las indicaciones que muestra la herramienta al seleccionar cada recuadro a diligenciar. Al terminar la herramienta calculará una calificación total y asignará una categoría a cada tarea evaluada, conforme a la siguiente clasificación y ponderación: • EVALUACIÓN PERIÓDICA: <=25 • INTERVENCIÓN A MEDIANO PLAZO: 25,1 a 50 • INTERVENCIÓN A CORTO PLAZO: 50,1 a 70 • INTERVENCIÓN INMEDIATA >=70,1 Revise entonces cuáles son las tareas con la calificación y clasificación más crítica, es decir INTERVENCIÓN INMEDIATA e infórmelo a la empresa para que se realice sobre estas la aplicación de la Evaluación Profunda en siguientes visitas, las cuales se sugiere programarse con la participación de los actores indicados en las instrucciones. Envíe el archivo a la empresa e informe que este cuenta con una pestaña denominada Consolidado por tarea, donde podrá seleccionar cada una de las tareas evaluadas y obtendrá el correspondiente resultado imprimible.
A9: Actores Invitados y roles | B9: Trabajadores que ejecutan la tarea crítica por MMC y supervisores: Suministrarán información verídica sobre las condiciones de trabajo y estarán atentos a corroborar cualquier dato, así como formular ideas de posibilidades de mejoramiento. Director, Coordinador o Encargado SST: Informará a trabajadores, supervisores y directores de área la ejecución y alcance de la evaluación diagnóstica, facilitará el acceso del evaluador a las áreas que se requieran y la comunicación con los actores invitados, además estará atento a corroborar cualquier dato, así como formular ideas de posibilidades de mejoramiento.
A11: Tiempo requerido | B11: 4 horas en campo 4 horas de informe Estos tiempos pueden extenderse de acuerdo con la complejidad de la problemática de la determinada empresa a intervenir.
A13: Recursos | B13: Papelería, Cámara digital, Flexómetro, Elementos de protección personal, computador.
A15: Profesional asignado | B15: Profesional Especialista en Salud Ocupacional o áreas afines, entrenado en la aplicación de las herramientas y preferiblemente con experiencia en ergonomía

Sheet INFORMACION ATEL
A2: Herramienta de Diagnóstico Rápido Inicial Análisis de Información ATEL
A4: INFORMACIÓN GENERAL DE LA EMPRESA
A6: Razón Social | D6: Nombre empresa | M6: NIT | R6: Fecha de diligenciamiento
A8: Actividad económica
A10: Problemática de manipulación manual de cargas en la empresa
A12: Dirección | M12: Teléfonos | R12: Municipio
A14: Observaciones
A16: INFORMACIÓN GENERAL DE LOS TRABAJADORES
A19: No. total de trabajadores en la empresa | B19: Total trabajadores expuestos a peligros por MMC | D19: Mujeres expuestas a peligros por MMC | F19: Hombres expuestos a peligros por MMC
B20: No. | C20: Porcentaje vs total de la empresa | D20: No. | E20: Porcentaje vs total de expuestos | F20: No. | G20: Porcentaje vs total de expuestos
A21: 100 | B21: 20 | C21: =B21*100%/A21 -> 0.2 | D21: 8 | E21: =D21*100%/B21 -> 0.4 | F21: 12 | G21: =F21*100%/B21 -> 0.6
A22: 1
A30: Edad población expuesta | B30: Rango | C30: Mujeres | E30: Hombres
C31: No. | D31: Porcentaje | E31: No. | F31: Porcentaje
B32: 18 a 25 | C32: 1 | D32: =C32*100%/D21 -> 0.125 | E32: 2 | F32: =E32*100%/F21 -> 0.1666666667
B33: 26 a 35 | C33: 2 | D33: =C33*100%/D21 -> 0.25 | E33: 2 | F33: =E33*100%/F21 -> 0.1666666667
B34: 36 a 45 | C34: 5 | D34: =C34*100%/D21 -> 0.625 | E34: 2 | F34: =E34*100%/F21 -> 0.1666666667
B35: 46 a 55 | C35: 0 | D35: =C35*100%/D21 -> 0 | E35: 2 | F35: =E35*100%/F21 -> 0.1666666667
B36: 56 o más | C36: 0 | D36: =C36*100%/D21 -> 0 | E36: 4 | F36: =E36*100%/F21 -> 0.3333333333
A44: INFORMACIÓN GENERAL SOBRE LA FORMA DE CONTRATACIÓN
B46: Trabajadores expuestos a MMC
B47: Directos | C47: Porcentaje | D47: Contratistas | E47: Porcentaje
B48: 15 | C48: =B48*100%/B21 -> 0.75 | D48: 5 | E48: =D48*100%/B21 -> 0.25
A51: INFORMACIÓN BÁSICA SOBRE SEGURIDAD Y SALUD EN EL TRABAJO
C53: Presencia de los siguientes registros/ documentos | H53: Actualización dentro de los últimos 12 meses | K53: Calidad de la información de los registros para el Dx. Inicial | N53: Calificación parcial calidad de la información de los registros | P53: Calificación calidad de la información de los registros
C54: Identificación de peligros, evaluación y valoración de riesgos | N54: =IF(K54="Suficiente","0,1",IF(K54="Regular","0,5",IF(K54="Sin información","1"))) -> FALSE | P54: =N54+N55+N56 -> 0
C55: Caracterización de la accidentalidad por sobresfuerzos y falsos movimientos relacionados con MMC | N55: =IF(K55="Suficiente","0,1",IF(K55="Regular","0,5",IF(K55="Sin información","1"))) -> FALSE
C56: Caracterización por desórdenes músculo esqueléticos DME | N56: FALSE
A58: ANÁLISIS DE ACCIDENTALIDAD POR SOBRESFUERZOS Y FALSOS MOVIMIENTOS RELACIONADOS CON MMC
C60: AÑO 2014 | D60: AÑO 2015 | E60: AÑO 2016 | F60: TOTAL
A61: Total de accidentes | C61: 10 | D61: 10 | E61: 10 | F61: =SUM(C61:E61) -> 30
A62: Días perdidos por total de accidentes | C62: 30 | D62: 30 | E62: 30 | F62: =SUM(C62:E62) -> 90
A63: Accidentes por sobresfuerzos relacionados con MMC | C63: 6 | D63: 6 | E63: 6 | F63: 18
A64: Días perdidos tras accidentes por sobresfuerzos relacionados con MMC | C64: 18 | D64: 18 | E64: 18 | F64: 54
A65: Porcentaje accidentes por sobresfuerzos relacionados con MMC vs el total | C65: =C63*100%/C61 -> 0.6 | D65: =D63*100%/D61 -> 0.6 | E65: =E63*100%/E61 -> 0.6
D74: AÑO 2014 | E74: AÑO 2015 | F74: AÑO 2016 | G74: TOTAL | J74: Porcentaje
A75: Número de accidentes de trabajo por sobresfuerzo relacionados con MMC que generaron lesiones en segmentos corporales | B75: Miembros superiores | D75: 1 | E75: 2 | F75: 3 | G75: =SUM(D75:F75) -> 6 | J75: =G75*100%/F63 -> 0.3333333333
B76: Columna | D76: 2 | E76: 2 | F76: 2 | G76: =SUM(D76:F76) -> 6 | J76: =G76*100%/F63 -> 0.3333333333
B77: Miembros inferiores | D77: 3 | E77: 2 | F77: 1 | G77: 6 | J77: =G77*100%/F63 -> 0.3333333333
B86: Proceso | D86: AÑO 2014 | E86: AÑO 2015 | F86: AÑO 2016 | G86: TOTAL | J86: %
A87: No. de accidentes por sobresfuerzos relacionados con MMC | B87: Producción | D87: 1 | E87: 2 | F87: 3 | G87: =SUM(D87:F87) -> 6 | J87: =G87*100%/F63 -> 0.3333333333
B88: Producto terminado | D88: 2 | E88: 2 | F88: 2 | G88: =SUM(D88:F88) -> 6 | J88: =G88*100%/F63 -> 0.3333333333
B89: Almacén | D89: 2 | E89: 1 | F89: 1 | G89: 4 | J89: =G89*100%/F63 -> 0.2222222222
B90: Mecanizado | D90: 1 | E90: 1 | F90: 0 | G90: 2 | J90: =G90*100%/F63 -> 0.1111111111
G91: 0 | J91: =G91*100%/F63 -> 0
G92: 0 | J92: =G92*100%/F63 -> 0
G93: 0 | J93: =G93*100%/F63 -> 0
G94: 0 | J94: =G94*100%/F63 -> 0
G95: 0 | J95: =G95*100%/F63 -> 0
B97: Proceso | D97: AÑO 2014 | E97: AÑO 2015 | F97: AÑO 2016 | G97: TOTAL
A98: No. Días perdidos accidentes por MMC | B98: Producción | D98: 3 | E98: 6 | F98: 9 | G98: =SUM(D98:F98) -> 18
B99: Producto terminado | D99: 6 | E99: 6 | F99: 6 | G99: =SUM(D99:F99) -> 18
B100: Almacén | D100: 6 | E100: 3 | F100: 3 | G100: 12
B101: Mecanizado | D101: 3 | E101: 3 | F101: 0 | G101: 6
G102: 0
G103: 0
G104: 0
G105: 0
G106: 0
A109: REGISTRO DE DESÓRDENES MÚSCULO ESQUELÉTICOS DME, EN ÁREAS O PROCESOS CRÍTICOS POR EXPOSICIÓN A MMC
C112: AÑO 2014 | D112: AÑO 2015 | E112: AÑO 2016 | F112: TOTAL
A113: No. de trabajadores con sintomatología Músculo Esquelética | C113: 5 | D113: 3 | E113: 2 | F113: =SUM(C113:E113) -> 10
A114: No. Desórdenes Músculo Esqueléticos de origen común | C114: 3 | D114: 2 | E114: 1 | F114: =SUM(C114:E114) -> 6
A115: No. Desórdenes Músculo Esqueléticos de origen laboral | C115: 2 | D115: 1 | E115: 1 | F115: =SUM(C115:E115) -> 4
A116: Total Desórdenes Músculo Esqueléticos | C116: =SUM(C114:C115) -> 5 | D116: =SUM(D114:D115) -> 3 | E116: =SUM(E114:E115) -> 2 | F116: =SUM(C116:E116) -> 10
A117: Días perdidos por Desórdenes Músculo Esqueléticos | C117: 15 | D117: 9 | E117: 6 | F117: 30
D127: AÑO 2014 | E127: AÑO 2015 | F127: AÑO 2016 | G127: TOTAL | J127: Porcentaje
A128: Total Desórdenes Músculo Esqueléticos de cualquier origen | B128: Miembros superiores | D128: 1 | E128: 1 | F128: 1 | G128: =SUM(D128:F128) -> 3 | J128: =G128*100%/F116 -> 0.3
B129: Columna | D129: 3 | E129: 2 | F129: 1 | G129: =SUM(D129:F129) -> 6 | J129: =G129*100%/F116 -> 0.6
B130: Miembros inferiores | D130: 1 | E130: 0 | F130: 0 | G130: =SUM(D130:F130) -> 1 | J130: =G130*100%/F116 -> 0.1
B139: Proceso | D139: AÑO 2014 | E139: AÑO 2015 | F139: AÑO 2016 | G139: TOTAL | J139: Porcentaje
A140: Número de Desórdenes Músculo Esqueléticos | B140: Producción | D140: 1 | E140: 0 | F140: 1 | G140: =SUM(D140:F140) -> 2 | J140: =G140*100%/F116 -> 0.2
B141: Producto terminado | D141: 1 | E141: 0 | F141: 0 | G141: =SUM(D141:F141) -> 1 | J141: =G141*100%/F116 -> 0.1
B142: Almacén | D142: 2 | E142: 2 | F142: 1 | G142: 5 | J142: =G142*100%/F116 -> 0.5
B143: Mecanizado | D143: 1 | E143: 0 | F143: 0 | G143: 1 | J143: =G143*100%/F116 -> 0.1
B144: Administración | D144: 0 | E144: 1 | F144: 0 | G144: 1 | J144: =G144*100%/F116 -> 0.1
G145: 0 | J145: =G145*100%/F116 -> 0
G146: 0 | J146: =G146*100%/F116 -> 0
G147: 0 | J147: =G147*100%/F116 -> 0
G148: 0 | J148: =G148*100%/F116 -> 0
D150: AÑO 2014 | E150: AÑO 2015 | F150: AÑO 2016 | G150: TOTAL
A151: Número de días perdidos por Desórdenes Músculo Esqueléticos | B151: Producción | D151: 3 | E151: 0 | F151: 3 | G151: =SUM(D151:F151) -> 6
B152: Producto terminado | D152: 3 | E152: 0 | F152: 0 | G152: =SUM(D152:F152) -> 3
B153: Almacén | D153: 6 | E153: 6 | F153: 3 | G153: 15
B154: Mecanizado | D154: 3 | E154: 0 | F154: 0 | G154: 3
B155: Administración | D155: 0 | E155: 3 | F155: 0 | G155: 3
G156: 0
G157: 0
G158: 0
G159: 0
A161: CONCLUSIONES

Sheet ANÁLISIS POR PROCESO
A2: Herramienta de Diagnóstico Rápido Inicial Análisis de información por proceso y actividad crítica
A3: ='INFORMACION ATEL'!D6 -> Nombre empresa
Q5: DETERMINANTE ORGANIZACIONAL | AD5: DETERMINANTE TECNOLÓGICA | BB5: DETERMINANTE AMBIENTAL
A6: No. | B6: =D6 -> TAREA CRÍTICA DE MANIPULACIÓN MANUAL DE CARGAS | C6: PROCESO CRÍTICO | D6: TAREA CRÍTICA DE MANIPULACIÓN MANUAL DE CARGAS | E6: OBSERVACIONES DE LA TAREA | F6: No. DE EXPUESTOS | G6: PORCENTAJE CON RELACIÓN AL TOTAL DE EXPUESTOS A MMC | H6: CALIFICACIÓN (máximo valor 3) | J6: CALIFICACIÓN DE LA CALIDAD DE LA INFORMACIÓN DE LOS REGISTROS (máximo valor 3) | K6: IDENTIFICACIÓN DE PELIGROS Y EVALUACIÓN DE RIESGOS | N6: ¿SE HAN DESARROLLADO CONTROLES PARA LA PREVENCION DE ACCIDENTES POR SOBRESFUERZOS Y APARICIÓN DE DME RELACIONADOS CON LA TAREA? | O6: CALIFICACIÓN PARCIAL (máximo valor 2) | Q6: ¿SE TIENE ESTIPULADO EL PERFIL OCUPACIONAL PARA LA POBLACIÓN QUE SE EXPONE A MMC? | R6: CALIFICACIÓN (máximo valor 5) | S6: ¿EXISTE UN PROGRAMA DE ENTRENAMIENTO EN MMC PARA EL PERSONAL EXPUESTO? | T6: CALIFICACIÓN (máximo valor 5) | U6: ¿EL CONTENIDO DEL TRABAJO VARÍA DE MANERA QUE FLUCTUA LA EXPOSICIÓN A MMC? | V6: CALIFICACIÓN (máximo valor 5) | W6: ¿EL CONTENIDO DE LA TAREA DETERMINA UNA ACUMULACIÓN DE LA EXPOSICIÓN A MMC EN LA JORNADA? | X6: CALIFICACIÓN (máximo valor 5) | Y6: LEVANTAR Y TRANSPORTAR | AA6: EMPUJAR Y HALAR | AD6: LEVANTAR Y TRANSPORTAR | AN6: EMPUJAR Y HALAR | AX6: ¿EXISTENCIA DE AYUDAS MECÁNICAS? | AY6: ¿AYUDAS MECÁNICAS EXISTENTES? | AZ6: CALIFICACIÓN (máximo valor 5) | BB6: ¿CONDICIONES DE ESPACIO, ORDEN Y LIMPIEZA FAVORABLES PARA MMC? | BC6: CALIFICACIÓN (máximo valor 3) | BD6: ¿CONFORT ASOCIADO A FAVORABLES CONDICIONES AMBIENTALES DURANTE LA MMC? | BE6: CALIFICACIÓN (máximo valor 3) | BG6: CALIFICACIÓN TOTAL | BH6: CLASIFICACIÓN | BJ6: OBSERVACIONES SOBRE LA PROBLEMÁTICA DE EXPOSICIÓN A RIESGO POR MANIPULACIÓN MANUAL DE CARGAS | BL6: ESTRATEGIAS GENERALES DE INTERVENCIÓN
K7: NIVEL DE RIESGO (NR) | L7: ACEPTABILIDAD DEL RIESGO | M7: CALIFICACIÓN PARCIAL (máximo valor 2) | Y7: FRECUENCIA | Z7: CALIFICACIÓN (máximo valor 5) | AA7: FRECUENCIA | AB7: CALIFICACIÓN (máximo valor 5) | AD7: ¿PESO DE LA CARGA? | AE7: CALIFICACIÓN (máximo valor 5) | AF7: ¿ACCESIBILIDAD VERTICAL Y HORIZONTAL A LA CARGA? | AG7: CALIFICACIÓN (máximo valor 5) | AH7: ¿DISTANCIA DE DESPLAZAMIENTO DE LA CARGA? | AI7: CALIFICACIÓN (máximo valor 5) | AJ7: ¿REQUERIMIENTOS DE GIRO MENORES A 45° EN LA MMC? | AK7: CALIFICACIÓN (máximo valor 5) | AL7: ¿DISEÑO DE AGARRES DE LAS CARGAS A MANIPULAR MANUALMENTE? | AM7: CALIFICACIÓN (máximo valor 5) | AN7: ¿FUERZA INICIAL? | AO7: CALIFICACIÓN (máximo valor 5) | AP7: ¿FUERZA SOSTENIDA? | AQ7: CALIFICACIÓN (máximo valor 5) | AR7: ¿ACCESIBILIDAD VERTICAL Y HORIZONTAL AL PUNTO DE AGARRE? | AS7: CALIFICACIÓN (máximo valor 5) | AT7: ¿DISTANCIA? | AU7: CALIFICACIÓN (máximo valor 5) | AV7: ¿CARACTERÍSTICAS DEL OBJETO? (REFIERE AL DISPOSITIVO PARA TRANSPORTAR LA CARGA) | AW7: CALIFICACIÓN (máximo valor 5)
A8: 1 | B8: =D8 -> 0 | F8: 5 | G8: =F8*100%/'INFORMACION ATEL'!B21 -> 0.25 | H8: =IF(G8=0%,"0",IF(G8<=10%,"0,5",IF(G8<=25%,"1",IF(G8<=50%,"1,5",IF(G8<=75%,"2",IF(G8>=76%,"3",)))))) -> 1 | J8: ='INFORMACION ATEL'!P54 -> 0 | BE8: =IF(BD8="SI","1",IF(BD8="NO","3",IF(BD8="NA","1",IF(BD8="","")))) ->  | BG8: =H8+J8+M8+O8+R8+T8+V8+X8+Z8+AB8+AE8+AG8+AI8+AK8+AM8+AO8+AQ8+AS8+AU8+AW8+AZ8+BC8+BE8 ->  | BH8: =IF(BG8<=25,"EVALUACIÓN PERIÓDICA",IF(BG8<=50,"INTERVENCIÓN A MEDIANO PLAZO",IF(BG8<=70,"INTERVENCIÓN A CORTO PLAZO",IF(BG8>70,"INTERVENCIÓN INMEDIATA",IF(BG8="",""))))) -> 
B9: =D9 -> 0 | G9: =F9*100%/'INFORMACION ATEL'!B21 -> 0 | H9: =IF(G9=0%,"0",IF(G9<=10%,"0,5",IF(G9<=25%,"1",IF(G9<=50%,"1,5",IF(G9<=75%,"2",IF(G9>=76%,"3",)))))) -> 0 | J9: ='INFORMACION ATEL'!P54 -> 0 | L9: =IF(K9="IV","ACEPTABLE",IF(K9="III","MEJORABLE",IF(K9="II","NO ACEPTABLE, O ACEPTABLE CON CONTROL",IF(K9="I","NO ACEPTABLE",IF(K9="","",))))) ->  | M9: =IF(K9="","",IF(K9="IV","0,2",IF(K9="III","0,5",IF(K9="II","0,7",IF(K9="I","1",))))) ->  | O9: =IF(N9="SI","1",IF(N9="NO","2",IF(N9="",""))) ->  | R9: =IF(Q9="Completo","1",IF(Q9="Parcial","2",IF(Q9="Insuficiente","4",IF(Q9="No existe","5",IF(Q9="",""))))) ->  | T9: =IF(S9="SI","1",IF(S9="NO","5",IF(S9="",""))) ->  | V9: =IF(U9="SI","1",IF(U9="NO","5",IF(U9="",""))) ->  | X9: =IF(W9="de 0 a 5% intermitente","1",IF(W9="de 0 a 5% repetidamente","1,5",IF(W9="de 6% a 25% intermitente","2",IF(W9="de 6% a 25% repetidamente","2,5",IF(W9="de 26% a 50% intermitente","3",IF(W9="de 26% a 50% repetidamente","4",IF(W9="más del 51% intermitente","5",IF(W9="","",IF(W9="más del 51% repetidamente","5",IF(W9="","",)))))))))) ->  | Z9: =IF(Y9="menos de 1 vez/min","1",IF(Y9="1 vez/min","2",IF(Y9="2 a 3 veces/min","4",IF(Y9="igual o mas de 4 veces/min","5",IF(Y9="No aplica","1",IF(Y9="","")))))) ->  | AB9: =IF(AA9="menos de 1 vez/min","1",IF(AA9="1 vez/min","2",IF(AA9="2 a 3 veces/min","4",IF(AA9="igual o mas de 4 veces/min","5",IF(AA9="No aplica","1",IF(AA9="","",)))))) ->  | AE9: =IF(AD9="menor o igual a 12,5 Kg. existiendo solo mujeres","1",IF(AD9="mayor a 12,5 Kg. existiendo solo mujeres","5",IF(AD9="menor o igual a 25 Kg. existiendo solo hombres","1",IF(AD9="mayor a 25 Kg. existiendo solo hombres","5",IF(AD9="menor o igual a 25 Kg. existiendo hombres y mujeres","5",IF(AD9="mayor a 25 Kg. existiendo hombres y mujeres","5",IF(AD9="No aplica","1",IF(AD9="","",)))))))) ->  | AG9: =IF(AF9="Agarres por fuera de los 70 y 130 cm. de altura y, 45 cm. de alcance","5",IF(AF9="Alcances dentro de los 70 y 130 cm. de altura y, 45 cm. de alcance","1",IF(AF9="No aplica","1",IF(AF9="","",)))) ->  | AI9: =IF(AH9="menores o iguales a 1m.","1",IF(AH9="mayores a 1m. y menores o iguales a 2m.","2",IF(AH9="mayores a 2m. y menores o iguales a 4m.","3",IF(AH9="mayores a 4m. y menores o iguales a 10m.","4",IF(AH9="mayores a 10m.","5",IF(AH9="No aplica","1",IF(AH9="","",))))))) ->  | AK9: =IF(AJ9="SI","1",IF(AJ9="NO","5",IF(AJ9="No aplica","1",IF(AJ9="","")))) ->  | AM9: =IF(AL9="BUENO","1",IF(AL9="REGULAR","3",IF(AL9="MALO","5",IF(AL9="No aplica","1",IF(AL9="",""))))) ->  | AO9: =IF(AN9="Requerimiento de empujar la mayoría del tiempo, sin aplicar enviones de fuerza, dejando espacio < 1m. entre la carga y los pies, para iniciar el movimiento del objeto","1",IF(AN9="Requerimiento de empujar y/o halar, aplicando enviones de fuerza y/o dejando amplio espacio entre la carga y los pies (>1m.) para iniciar el movimiento del objeto","5",IF(AN9="No aplica","1",IF(AN9="","")))) ->  | AQ9: =IF(AP9="Requerimiento de empujar la mayoría del tiempo, sin aplicar enviones de fuerza, dejando espacio < 1m. entre la carga y los pies, para sostener el movimiento del objeto","1",IF(AP9="Requerimiento de empujar y/o halar, aplicando enviones de fuerza y/o dejando amplio espacio entre la carga y los pies (>1m.) para sostener el movimiento del objeto","5",IF(AP9="No aplica","1",IF(AP9="","")))) ->  | AS9: =IF(AR9="Alcances dentro de los 90 y 110 cm. de altura y, 45 cm. de alcance","1",IF(AR9="Agarres por fuera de los 90 y 110 cm. de altura y, 45 cm. de alcance","5",IF(AR9="No aplica","1",IF(AR9="","")))) ->  | AU9: =IF(AT9="menor o igual a 2m.","1",IF(AT9="mayor a 2m. y menor o igual a 8m.","2",IF(AT9="mayor a 8m. y menor o igual a 15m.","3",IF(AT9="mayor a 15m. y menor o igual a 30m.","4",IF(AT9="mayor a 31m. y menor o igual a 45m.","4,5",IF(AT9="mayor a 45m.","5",IF(AT9="No aplica","1",IF(AT9="","",)))))))) ->  | AW9: =IF(AV9="Estado funcional de rodamientos, mecanismos y compartimentos","1",IF(AV9="Estado disfuncional de rodamientos, mecanismos y compartimentos","5",IF(AV9="No existe","5",IF(AV9="No aplica","1",IF(AV9="",""))))) ->  | AZ9: =IF(AX9="SI","1",IF(AX9="NO","5",IF(AX9="No aplica","1",IF(AX9="","")))) ->  | BC9: =IF(BB9="SI","1",IF(BB9="NO","3",IF(BB9="NA","1",IF(BB9="","")))) ->  | BE9: =IF(BD9="SI","1",IF(BD9="NO","3",IF(BD9="NA","1",IF(BD9="","")))) ->  | BG9: =H9+J9+M9+O9+R9+T9+V9+X9+Z9+AB9+AE9+AG9+AI9+AK9+AM9+AO9+AQ9+AS9+AU9+AW9+AZ9+BC9+BE9 ->  | BH9: =IF(BG9<=25,"EVALUACIÓN PERIÓDICA",IF(BG9<=50,"INTERVENCIÓN A MEDIANO PLAZO",IF(BG9<=70,"INTERVENCIÓN A CORTO PLAZO",IF(BG9>70,"INTERVENCIÓN INMEDIATA",IF(BG9="",""))))) -> 
B10: 0 | G10: =F10*100%/'INFORMACION ATEL'!B21 -> 0 | H10: 0 | J10: ='INFORMACION ATEL'!P54 -> 0
B11: 0 | G11: =F11*100%/'INFORMACION ATEL'!B21 -> 0 | H11: 0 | J11: ='INFORMACION ATEL'!P54 -> 0
B12: 0 | G12: =F12*100%/'INFORMACION ATEL'!B21 -> 0 | H12: 0 | J12: ='INFORMACION ATEL'!P54 -> 0
B13: 0 | G13: =F13*100%/'INFORMACION ATEL'!B21 -> 0 | H13: 0 | J13: ='INFORMACION ATEL'!P54 -> 0
B14: 0 | G14: =F14*100%/'INFORMACION ATEL'!B21 -> 0 | H14: 0 | J14: ='INFORMACION ATEL'!P54 -> 0
B15: 0 | G15: =F15*100%/'INFORMACION ATEL'!B21 -> 0 | H15: 0 | J15: ='INFORMACION ATEL'!P54 -> 0
B16: 0 | G16: =F16*100%/'INFORMACION ATEL'!B21 -> 0 | H16: 0 | J16: ='INFORMACION ATEL'!P54 -> 0
B17: 0 | G17: =F17*100%/'INFORMACION ATEL'!B21 -> 0 | H17: 0 | J17: ='INFORMACION ATEL'!P54 -> 0
B18: 0 | G18: =F18*100%/'INFORMACION ATEL'!B21 -> 0 | H18: 0 | J18: ='INFORMACION ATEL'!P54 -> 0
B19: 0 | G19: =F19*100%/'INFORMACION ATEL'!B21 -> 0 | H19: 0 | J19: ='INFORMACION ATEL'!P54 -> 0
B20: 0 | G20: =F20*100%/'INFORMACION ATEL'!B21 -> 0 | H20: 0 | J20: ='INFORMACION ATEL'!P54 -> 0
B21: 0 | G21: =F21*100%/'INFORMACION ATEL'!B21 -> 0 | H21: 0 | J21: ='INFORMACION ATEL'!P54 -> 0
B22: 0 | G22: =F22*100%/'INFORMACION ATEL'!B21 -> 0 | H22: 0 | J22: ='INFORMACION ATEL'!P54 -> 0
B23: 0 | G23: =F23*100%/'INFORMACION ATEL'!B21 -> 0 | H23: 0 | J23: ='INFORMACION ATEL'!P54 -> 0
B24: 0 | G24: =F24*100%/'INFORMACION ATEL'!B21 -> 0 | H24: 0 | J24: ='INFORMACION ATEL'!P54 -> 0
B25: 0 | G25: =F25*100%/'INFORMACION ATEL'!B21 -> 0 | H25: 0 | J25: ='INFORMACION ATEL'!P54 -> 0
B26: 0 | F26: 34 | G26: =F26*100%/'INFORMACION ATEL'!B21 -> 1.7 | H26: 3 | J26: ='INFORMACION ATEL'!P54 -> 0
B27: 0 | G27: =F27*100%/'INFORMACION ATEL'!B21 -> 0 | H27: 0 | J27: ='INFORMACION ATEL'!P54 -> 0
B28: 0 | G28: =F28*100%/'INFORMACION ATEL'!B21 -> 0 | H28: 0 | J28: ='INFORMACION ATEL'!P54 -> 0
B29: 0 | G29: =F29*100%/'INFORMACION ATEL'!B21 -> 0 | H29: 0 | J29: ='INFORMACION ATEL'!P54 -> 0
B30: 0 | G30: =F30*100%/'INFORMACION ATEL'!B21 -> 0 | H30: 0 | J30: ='INFORMACION ATEL'!P54 -> 0

Sheet FORMATO DE CAMPO
A2: Herramienta de Diagnóstico Rápido Inicial Análisis de Información ATEL
A4: INFORMACIÓN GENERAL DE LA EMPRESA
A6: Razón Social | M6: NIT | S6: Fecha de diligenciamiento
A8: Actividad económica
A10: Dirección | M10: Teléfono | S10: Municipio
A12: Proceso crítico | J12: Tarea crítica de manipulacipon manual de cargas
G14: DETERMINANTE ORGANIZACIONAL
A15: IDENTIFICACIÓN DE PELIGROS Y EVALUACIÓN DE RIESGOS | D15: ¿SE HAN DESARROLLADO CONTROLES PARA LA PREVENCION DE ACCIDENTES POR SOBRESFUERZOS Y APARICIÓN DE DME RELACIONADOS CON LA TAREA? | G15: ¿SE TIENE ESTIPULADO EL PERFIL OCUPACIONAL PARA LA POBLACIÓN QUE SE EXPONE A MMC? | J15: ¿EXISTE UN PROGRAMA DE ENTRENAMIENTO EN MMC PARA EL PERSONAL EXPUESTO? | M15: ¿EL CONTENIDO DEL TRABAJO VARÍA DE MANERA QUE FLUCTUA LA EXPOSICIÓN A MMC? | P15: ¿EL CONTENIDO DE LA TAREA DETERMINA UNA ACUMULACIÓN DE LA EXPOSICIÓN A MMC EN LA JORNADA? | S15: LEVANTAR Y TRANSPORTAR | V15: EMPUJAR Y HALAR
A16: NIVEL DE RIESGO (NR) | S16: FRECUENCIA | V16: FRECUENCIA
A17: I | D17: SI | G17: Completo | J17: SI | M17: SI | P17: De 0 a 5% intermitente | S17: Menos de 1 vez/min | V17: Menos de 1 vez/min
A18: II | D18: NO | G18: Parcial | J18: NO | M18: NO | P18: De 0 a 5% repetidamente | S18: 1 vez/min | V18: 1 vez/min
A19: III | G19: Insuficiente | P19: De 6% a 25% intermitente | S19: 2 a 3 veces/min | V19: 2 a 3 veces/min
A20: IV | G20: No existe | P20: De 6% a 25% repetidamente | S20: Igual o mas de 4 veces/min | V20: Igual o mas de 4 veces/min
P21: De 26% a 50% intermitente | S21: No aplica | V21: No aplica
P22: De 26% a 50% repetidamente
P23: Más del 51% intermitente
P24: Más del 51% repetidamente
A26: DETERMINANTE TECNOLÓGICA
A27: LEVANTAR Y TRANSPORTAR
A28: ¿PESO DE LA CARGA? | G28: ¿ACCESIBILIDAD VERTICAL Y HORIZONTAL A LA CARGA? | M28: ¿DISTANCIA DE DESPLAZAMIENTO DE LA CARGA? | S28: ¿REQUERIMIENTOS DE GIRO MENORES A 45° EN LA MMC? | V28: ¿DISEÑO DE AGARRES DE LAS CARGAS A MANIPULAR MANUALMENTE?
A29: Menor o igual a 12,5 Kg. existiendo solo mujeres | G29: Alcances dentro de los 70 y 130 cm. de altura y, 45 cm. de alcance | M29: Menores o iguales a 1m. | S29: SI | V29: BUENO
A30: Mayor a 12,5 Kg. existiendo solo mujeres | G30: Agarres por fuera de los 70 y 130 cm. de altura y, 45 cm. de alcance | M30: Mayores a 1m. y menores o iguales a 2m. | S30: NO | V30: REGULAR
A31: Menor o igual a 25 Kg. existiendo solo hombres | G31: No aplica | M31: Mayores a 2m. y menores o iguales a 4m. | V31: MALO
A32: Mayor a 25 Kg. existiendo solo hombres | M32: Mayores a 4m. y menores o iguales a 10m. | V32: No aplica
A33: Menor o igual a 25 Kg. existiendo hombres y mujeres | M33: Mayores a 10m.
A34: Mayor a 25 Kg. existiendo hombres y mujeres | M34: No aplica
A35: No aplica
A38: DETERMINANTE TECNOLÓGICA
A39: EMPUJAR Y HALAR
A40: ¿FUERZA INICIAL? | G40: ¿FUERZA SOSTENIDA? | M40: ¿ACCESIBILIDAD VERTICAL Y HORIZONTAL AL PUNTO DE AGARRE? | P40: ¿DISTANCIA? | S40: ¿CARACTERÍSTICAS DEL OBJETO? (REFIERE AL DISPOSITIVO PARA TRANSPORTAR LA CARGA)
A41: Requerimiento de empujar la mayoría del tiempo, sin aplicar enviones de fuerza, dejando espacio < 1m. entre la carga y los pies, para iniciar el movimiento del objeto | G41: Requerimiento de empujar la mayoría del tiempo, sin aplicar enviones de fuerza, dejando espacio < 1m. entre la carga y los pies, para sostener el movimiento del objeto | M41: Alcances dentro de los 90 y 110 cm. de altura y, 45 cm. de alcance | P41: Menor o igual a 2m. | S41: Estado funcional de rodamientos, mecanismos y compartimentos
A42: Requerimiento de empujar y/o halar, aplicando enviones de fuerza y/o dejando amplio espacio entre la carga y los pies (>1m.) para iniciar el movimiento del objeto | G42: Requerimiento de empujar y/o halar, aplicando enviones de fuerza y/o dejando amplio espacio entre la carga y los pies (>1m.) para sostener el movimiento del objeto | M42: Agarres por fuera de los 90 y 110 cm. de altura y, 45 cm. de alcance | P42: Mayor a 2m. y menor o igual a 8m. | S42: Estado disfuncional de rodamientos, mecanismos y compartimentos
A43: No aplica | G43: No aplica | M43: No aplica | P43: Mayor a 8m. y menor o igual a 15m. | S43: No existe
P44: Mayor a 15m. y menor o igual a 30m. | S44: No aplica
P45: Mayor a 31m. y menor o igual a 45m.
P46: Mayor a 45m.
P47: No aplica
A49: DETERMINANTE TECNOLÓGICA | J49: DETERMINANTE AMBIENTAL | P49: OBSERVACIONES SOBRE LA PROBLEMÁTICA DE EXPOSICIÓN A RIESGO POR MANIPULACIÓN MANUAL DE CARGAS
A50: ¿EXISTENCIA DE AYUDAS MECÁNICAS? | D50: ¿AYUDAS MECÁNICAS EXISTENTES? | J50: ¿CONDICIONES DE ESPACIO, ORDEN Y LIMPIEZA FAVORABLES PARA MMC? | M50: ¿CONFORT ASOCIADO A FAVORABLES CONDICIONES AMBIENTALES DURANTE LA MMC?
A51: SI | J51: SI | M51: SI
A52: NO | J52: NO | M52: NO
A53: No aplica
A57: ESTRATEGIAS GENERALES DE INTERVENCIÓN

Sheet CATEGORÍAS (hidden)
A1: Municipio | B1: ='INFORMACION ATEL'!H53 -> Actualización dentro de los últimos 12 meses | C1: ='INFORMACION ATEL'!K53 -> Calidad de la información de los registros para el Dx. Inicial | D1: GR IDENTIFICACIÓN PELIGROS Y EVAL RIESGOS | E1: ='ANÁLISIS POR PROCESO'!N6 -> ¿SE HAN DESARROLLADO CONTROLES PARA LA PREVENCION DE ACCIDENTES POR SOBRESFUERZOS Y APARICIÓN DE DME RELACIONADOS CON LA TAREA? | F1: ='ANÁLISIS POR PROCESO'!#REF! ->  | G1: SEGMENTOS | J1: ='ANÁLISIS POR PROCESO'!W6 -> ¿EL CONTENIDO DE LA TAREA DETERMINA UNA ACUMULACIÓN DE LA EXPOSICIÓN A MMC EN LA JORNADA? | K1: ='ANÁLISIS POR PROCESO'!Y7 -> FRECUENCIA | L1: ='ANÁLISIS POR PROCESO'!AA7 -> FRECUENCIA | M1: ='ANÁLISIS POR PROCESO'!AD7 -> ¿PESO DE LA CARGA? | N1: ='ANÁLISIS POR PROCESO'!AF7 -> ¿ACCESIBILIDAD VERTICAL Y HORIZONTAL A LA CARGA? | O1: ='ANÁLISIS POR PROCESO'!AH7 -> ¿DISTANCIA DE DESPLAZAMIENTO DE LA CARGA? | P1: ='ANÁLISIS POR PROCESO'!AL7 -> ¿DISEÑO DE AGARRES DE LAS CARGAS A MANIPULAR MANUALMENTE? | Q1: ='ANÁLISIS POR PROCESO'!AN7 -> ¿FUERZA INICIAL? | R1: ='ANÁLISIS POR PROCESO'!AP7 -> ¿FUERZA SOSTENIDA? | S1: ='ANÁLISIS POR PROCESO'!AR7 -> ¿ACCESIBILIDAD VERTICAL Y HORIZONTAL AL PUNTO DE AGARRE? | T1: ='ANÁLISIS POR PROCESO'!AT7 -> ¿DISTANCIA? | U1: ='ANÁLISIS POR PROCESO'!AV7 -> ¿CARACTERÍSTICAS DEL OBJETO? (REFIERE AL DISPOSITIVO PARA TRANSPORTAR LA CARGA) | V1: ='ANÁLISIS POR PROCESO'!AX6 -> ¿EXISTENCIA DE AYUDAS MECÁNICAS? | W1: PERFIL OCUPACIONAL
A2: Abejorral | B2: SI | C2: Suficiente | D2: I | E2: SI | F2: SI | G2: Columna cervical | H2: SI | I2: SI | J2: De 0 a 5% intermitente | K2: Menos de 1 vez/min | L2: Menos de 1 vez/min | M2: Menor o igual a 12,5 Kg. existiendo solo mujeres | N2: Alcances dentro de los 70 y 130 cm. de altura y, 45 cm. de alcance | O2: Menores o iguales a 1m. | P2: BUENO | Q2: Requerimiento de empujar la mayoría del tiempo, sin aplicar enviones de fuerza, dejando espacio < 1m. entre la carga y los pies, para iniciar el movimiento del objeto | R2: Requerimiento de empujar la mayoría del tiempo, sin aplicar enviones de fuerza, dejando espacio < 1m. entre la carga y los pies, para sostener el movimiento del objeto | S2: Alcances dentro de los 90 y 110 cm. de altura y, 45 cm. de alcance | T2: Menor o igual a 2m. | U2: Estado funcional de rodamientos, mecanismos y compartimentos | V2: SI | W2: Completo
A3: Abrego | B3: NO | C3: Regular | D3: II | E3: NO | F3: NO | G3: Columna dorsal | H3: NO | I3: NO | J3: De 0 a 5% repetidamente | K3: 1 vez/min | L3: 1 vez/min | M3: Mayor a 12,5 Kg. existiendo solo mujeres | N3: Agarres por fuera de los 70 y 130 cm. de altura y, 45 cm. de alcance | O3: Mayores a 1m. y menores o iguales a 2m. | P3: REGULAR | Q3: Requerimiento de empujar y/o halar, aplicando enviones de fuerza y/o dejando amplio espacio entre la carga y los pies (>1m.) para iniciar el movimiento del objeto | R3: Requerimiento de empujar y/o halar, aplicando enviones de fuerza y/o dejando amplio espacio entre la carga y los pies (>1m.) para sostener el movimiento del objeto | S3: Agarres por fuera de los 90 y 110 cm. de altura y, 45 cm. de alcance | T3: Mayor a 2m. y menor o igual a 8m. | U3: Estado disfuncional de rodamientos, mecanismos y compartimentos | V3: NO | W3: Parcial
A4: Abriaquí | C4: Sin información | D4: III | G4: Columna lumbar | H4: No aplica | I4: No aplica | J4: De 6% a 25% intermitente | K4: 2 a 3 veces/min | L4: 2 a 3 veces/min | M4: Menor o igual a 25 Kg. existiendo solo hombres | N4: No aplica | O4: Mayores a 2m. y menores o iguales a 4m. | P4: MALO | Q4: No aplica | R4: No aplica | S4: No aplica | T4: Mayor a 8m. y menor o igual a 15m. | U4: No existe | V4: No aplica | W4: Insuficiente
A5: Acacías | D5: IV | G5: Hombro derecho | J5: De 6% a 25% repetidamente | K5: Igual o mas de 4 veces/min | L5: Igual o mas de 4 veces/min | M5: Mayor a 25 Kg. existiendo solo hombres | O5: Mayores a 4m. y menores o iguales a 10m. | P5: No aplica | T5: Mayor a 15m. y menor o igual a 30m. | U5: No aplica | W5: No existe
A6: Acandí | G6: Hombro izquierdo | J6: De 26% a 50% intermitente | K6: No aplica | L6: No aplica | M6: Menor o igual a 25 Kg. existiendo hombres y mujeres | O6: Mayores a 10m. | T6: Mayor a 31m. y menor o igual a 45m.
A7: Acevedo | G7: Codo derecho | J7: De 26% a 50% repetidamente | M7: Mayor a 25 Kg. existiendo hombres y mujeres | O7: No aplica | T7: Mayor a 45m.
A8: Achí | G8: Codo izquierdo | J8: Más del 51% intermitente | M8: No aplica | T8: No aplica
A9: Agrado | G9: Muñeca derecha | J9: Más del 51% repetidamente
A10: Agua de Dios | G10: Muñeca izquierda
A11: Aguachica | G11: Cadera derecha
A12: Aguada | G12: Cadera izquierda
A13: Aguadas | G13: Rodilla derecha
A14: Aguazul | G14: Rodilla izquierda
A15: Agustín Codazzi | G15: Tobillo derecho
A16: Aipe | G16: Tobillo izquierdo
A17: Albán | G17: No aplica
A18: Albán
A19: Albania
A20: Albania
A21: Albania
A22: Alcalá
A23: Aldana
A24: Alejandría
A25: Algarrobo
A26: Algeciras
A27: Almaguer
A28: Almeida
A29: Alpujarra
A30: Altamira
A31: Alto Baudo
A32: Altos del Rosario
A33: Alvarado
A34: Amagá
A35: Amalfi
A36: Ambalema
A37: Anapoima
A38: Ancuyá
A39: Andalucía
A40: Andes
A41: Angelópolis
A42: Angostura
A43: Anolaima
A44: Anorí
A45: Anserma
A46: Ansermanuevo
A47: Anza
A48: Anzoátegui
A49: Apartadó
A50: Apía
A51: Apulo
A52: Aquitania
A53: Aracataca
A54: Aranzazu
A55: Aratoca
A56: Arauca
A57: Arauquita
A58: Arbeláez
A59: Arboleda
A60: Arboledas
A61: Arboletes
A62: Arcabuco
A63: Arenal
A64: Argelia
A65: Argelia
A66: Argelia
A67: Ariguaní
A68: Arjona
A69: Armenia
A70: Armenia
A71: Armero
A72: Arroyohondo
A73: Astrea
A74: Ataco
A75: Atrato
A76: Ayapel
A77: Bagadó
A78: Bahía Solano
A79: Bajo Baudó
A80: Balboa
A81: Balboa
A82: Baranoa
A83: Baraya
A84: Barbacoas
A85: Barbosa
A86: Barbosa
A87: Barichara
A88: Barranca de Upía
A89: Barrancabermeja
A90: Barrancas
A91: Barranco de Loba
A92: Barranco Minas (CD)
A93: Barranquilla
A94: Becerril
A95: Belalcázar
A96: Belén
A97: Belén
A98: Belén de Los Andaquies
A99: Belén de Umbría
A100: Bello
A101: Belmira
A102: Beltrán
A103: Berbeo
A104: Betania
A105: Betéitiva
A106: Betulia
A107: Betulia
A108: Bituima
A109: Boavita
A110: Bochalema
A111: Bogotá, D.C.
A112: Bojacá
A113: Bojaya
A114: Bolívar
A115: Bolívar
A116: Bolívar
A117: Bosconia
A118: Boyacá
A119: Briceño
A120: Briceño
A121: Bucaramanga
A122: Bucarasica
A123: Buenaventura
A124: Buenavista
A125: Buenavista
A126: Buenavista
A127: Buenavista
A128: Buenos Aires
A129: Buesaco
A130: Bugalagrande
A131: Buriticá
A132: Busbanzá
A133: Cabrera
A134: Cabrera
A135: Cabuyaro
A136: Cacahual (CD)
A137: Cáceres
A138: Cachipay
A139: Cachirá
A140: Cácota
A141: Caicedo
A142: Caicedonia
A143: Caimito
A144: Cajamarca
A145: Cajibío
A146: Cajicá
A147: Calamar
A148: Calamar
A149: Calarca
A150: Caldas
A151: Caldas
A152: Caldono
A153: Cali
A154: California
A155: Calima
A156: Caloto(1)(3)
A157: Campamento
A158: Campo de La Cruz
A159: Campoalegre
A160: Campohermoso
A161: Canalete
A162: Candelaria
A163: Candelaria
A164: Cantagallo
A165: Cañasgordas
A166: Caparrapí
A167: Capitanejo
A168: Caqueza
A169: Caracolí
A170: Caramanta
A171: Carcasí
A172: Carepa
A173: Carmen de Apicalá
A174: Carmen de Carupa
A175: Carmen del Darien
A176: Carolina
A177: Cartagena
A178: Cartagena del Chairá
A179: Cartago
A180: Caruru
A181: Casabianca
A182: Castilla la Nueva
A183: Caucasia
A184: Cepitá
A185: Cereté
A186: Cerinza
A187: Cerrito
A188: Cerro San Antonio
A189: Cértegui
A190: Chachagüí
A191: Chaguaní
A192: Chalán
A193: Chameza
A194: Chaparral
A195: Charalá
A196: Charta
A197: Chía
A198: Chigorodó
A199: Chima
A200: Chimá
... 923 more rows

Sheet CONSOLIDADO POR ACTIVIDAD
A2: Herramienta de Diagnóstico Rápido Inicial Consolidado por proceso crítico
A3: ='INFORMACION ATEL'!D6 -> Nombre empresa
A5: ='ANÁLISIS POR PROCESO'!D6 -> TAREA CRÍTICA DE MANIPULACIÓN MANUAL DE CARGAS
A7: ='ANÁLISIS POR PROCESO'!C6 -> PROCESO CRÍTICO | F7: =VLOOKUP(F5,TABLA,2,0) -> 0 | L7: ='ANÁLISIS POR PROCESO'!E6 -> OBSERVACIONES DE LA TAREA | O7: =VLOOKUP(F5,TABLA,4,0) -> 0
A9: ='ANÁLISIS POR PROCESO'!F6 -> No. DE EXPUESTOS | F9: =VLOOKUP(F5,TABLA,5,0) -> 5
A11: ='ANÁLISIS POR PROCESO'!G6 -> PORCENTAJE CON RELACIÓN AL TOTAL DE EXPUESTOS A MMC | F11: =VLOOKUP(F5,TABLA,6,0) -> 0.25
A14: ='ANÁLISIS POR PROCESO'!K6 -> IDENTIFICACIÓN DE PELIGROS Y EVALUACIÓN DE RIESGOS | B14: ='ANÁLISIS POR PROCESO'!K7 -> NIVEL DE RIESGO (NR) | H14: =VLOOKUP(F5,TABLA,10,0) -> 0 | M14: ='ANÁLISIS POR PROCESO'!AD5 -> DETERMINANTE TECNOLÓGICA | O14: ='ANÁLISIS POR PROCESO'!AD6 -> LEVANTAR Y TRANSPORTAR | Q14: ='ANÁLISIS POR PROCESO'!AD7 -> ¿PESO DE LA CARGA? | V14: =VLOOKUP(F5,TABLA,29,0) -> 0
V15: =VLOOKUP(F5,TABLA,30,0) -> 0
B16: ='ANÁLISIS POR PROCESO'!L7 -> ACEPTABILIDAD DEL RIESGO | H16: =VLOOKUP(F5,TABLA,11,0) -> 0 | Q16: ='ANÁLISIS POR PROCESO'!AF7 -> ¿ACCESIBILIDAD VERTICAL Y HORIZONTAL A LA CARGA? | V16: =VLOOKUP(F5,TABLA,31,0) -> 0
V17: =VLOOKUP(F5,TABLA,32,0) -> 0
A18: ='ANÁLISIS POR PROCESO'!N6 -> ¿SE HAN DESARROLLADO CONTROLES PARA LA PREVENCION DE ACCIDENTES POR SOBRESFUERZOS Y APARICIÓN DE DME RELACIONADOS CON LA TAREA? | H18: =VLOOKUP(F5,TABLA,13,0) -> 0 | Q18: ='ANÁLISIS POR PROCESO'!AH7 -> ¿DISTANCIA DE DESPLAZAMIENTO DE LA CARGA? | V18: =VLOOKUP(F5,TABLA,33,0) -> 0
V19: =VLOOKUP(F5,TABLA,34,0) -> 0
Q20: ='ANÁLISIS POR PROCESO'!AJ7 -> ¿REQUERIMIENTOS DE GIRO MENORES A 45° EN LA MMC? | V20: =VLOOKUP(F5,TABLA,35,0) -> 0
V21: =VLOOKUP(F5,TABLA,36,0) -> 0
A22: ='ANÁLISIS POR PROCESO'!Q5 -> DETERMINANTE ORGANIZACIONAL | B22: ='ANÁLISIS POR PROCESO'!Q6 -> ¿SE TIENE ESTIPULADO EL PERFIL OCUPACIONAL PARA LA POBLACIÓN QUE SE EXPONE A MMC? | H22: =VLOOKUP(F5,TABLA,16,0) -> 0 | Q22: ='ANÁLISIS POR PROCESO'!AL7 -> ¿DISEÑO DE AGARRES DE LAS CARGAS A MANIPULAR MANUALMENTE? | V22: =VLOOKUP(F5,TABLA,37,0) -> 0
J23: =VLOOKUP(F5,TABLA,17,0) -> 0 | V23: =VLOOKUP(F5,TABLA,38,0) -> 0
B24: ='ANÁLISIS POR PROCESO'!S6 -> ¿EXISTE UN PROGRAMA DE ENTRENAMIENTO EN MMC PARA EL PERSONAL EXPUESTO? | H24: =VLOOKUP(F5,TABLA,18,0) -> 0 | O24: ='ANÁLISIS POR PROCESO'!AN6 -> EMPUJAR Y HALAR | Q24: ='ANÁLISIS POR PROCESO'!AN7 -> ¿FUERZA INICIAL? | V24: =VLOOKUP(F5,TABLA,39,0) -> 0
J25: =VLOOKUP(F5,TABLA,19,0) -> 0 | V25: =VLOOKUP(F5,TABLA,40,0) -> 0
B26: ='ANÁLISIS POR PROCESO'!U6 -> ¿EL CONTENIDO DEL TRABAJO VARÍA DE MANERA QUE FLUCTUA LA EXPOSICIÓN A MMC? | H26: =VLOOKUP(F5,TABLA,20,0) -> 0 | Q26: ='ANÁLISIS POR PROCESO'!AP7 -> ¿FUERZA SOSTENIDA? | V26: =VLOOKUP(F5,TABLA,41,0) -> 0
J27: =VLOOKUP(F5,TABLA,21,0) -> 0 | V27: =VLOOKUP(F5,TABLA,42,0) -> 0
B28: ='ANÁLISIS POR PROCESO'!W6 -> ¿EL CONTENIDO DE LA TAREA DETERMINA UNA ACUMULACIÓN DE LA EXPOSICIÓN A MMC EN LA JORNADA? | H28: =VLOOKUP(F5,TABLA,22,0) -> 0 | Q28: ='ANÁLISIS POR PROCESO'!AR7 -> ¿ACCESIBILIDAD VERTICAL Y HORIZONTAL AL PUNTO DE AGARRE? | V28: =VLOOKUP(F5,TABLA,43,0) -> 0
J29: =VLOOKUP(F5,TABLA,23,0) -> 0 | V29: =VLOOKUP(F5,TABLA,44,0) -> 0
B30: ='ANÁLISIS POR PROCESO'!Y6 -> LEVANTAR Y TRANSPORTAR | E30: ='ANÁLISIS POR PROCESO'!Y7 -> FRECUENCIA | H30: =VLOOKUP(F5,TABLA,24,0) -> 0 | Q30: ='ANÁLISIS POR PROCESO'!AT7 -> ¿DISTANCIA? | V30: =VLOOKUP(F5,TABLA,45,0) -> 0
J31: =VLOOKUP(F5,TABLA,25,0) -> 0 | V31: =VLOOKUP(F5,TABLA,46,0) -> 0
B32: ='ANÁLISIS POR PROCESO'!AA6 -> EMPUJAR Y HALAR | E32: ='ANÁLISIS POR PROCESO'!AA7 -> FRECUENCIA | H32: =VLOOKUP(F5,TABLA,26,0) -> 0 | Q32: ='ANÁLISIS POR PROCESO'!AV7 -> ¿CARACTERÍSTICAS DEL OBJETO? (REFIERE AL DISPOSITIVO PARA TRANSPORTAR LA CARGA) | V32: =VLOOKUP(F5,TABLA,47,0) -> 0
J33: =VLOOKUP(F5,TABLA,27,0) -> 0 | V33: =VLOOKUP(F5,TABLA,48,0) -> 0
O34: ='ANÁLISIS POR PROCESO'!AX6 -> ¿EXISTENCIA DE AYUDAS MECÁNICAS? | V34: =VLOOKUP(F5,TABLA,49,0) -> 0
A36: ='ANÁLISIS POR PROCESO'!BB5 -> DETERMINANTE AMBIENTAL | B36: ='ANÁLISIS POR PROCESO'!BB6 -> ¿CONDICIONES DE ESPACIO, ORDEN Y LIMPIEZA FAVORABLES PARA MMC? | H36: =VLOOKUP(F5,TABLA,53,0) -> 0 | O36: ='ANÁLISIS POR PROCESO'!AY6 -> ¿AYUDAS MECÁNICAS EXISTENTES? | V36: =VLOOKUP(F5,TABLA,50,0) -> 0
J37: =VLOOKUP(F5,TABLA,54,0) -> 0
B38: ='ANÁLISIS POR PROCESO'!BD6 -> ¿CONFORT ASOCIADO A FAVORABLES CONDICIONES AMBIENTALES DURANTE LA MMC? | H38: =VLOOKUP(F5,TABLA,55,0) -> 0
J39: =VLOOKUP(F5,TABLA,56,0) ->  | V39: =VLOOKUP(F5,TABLA,51,0) -> 0
E41: ='ANÁLISIS POR PROCESO'!BG6 -> CALIFICACIÓN TOTAL | O41: =VLOOKUP(F5,TABLA,58,0) -> 
E42: ='ANÁLISIS POR PROCESO'!BH6 -> CLASIFICACIÓN | O42: =VLOOKUP(F5,TABLA,59,0) -> 
O44: Calificación ideal | Q44: Peor calificación | T44: Calificación actual | V44: Porcentaje de gestión en el control del riesgo por MMC
L45: =IF(T45=30,"0",IF(T45<=29,"1",)) -> 1 | M45: =A22 -> DETERMINANTE ORGANIZACIONAL | O45: 6 | Q45: 30 | T45: =J23+J25+J27+J29+J31+J33 -> 0 | V45: =(100/T45)*100%/(100/O45)*L45 -> 
L46: =IF(T46=55,"0",IF(T46<=54,"1",)) -> 1 | M46: =M14 -> DETERMINANTE TECNOLÓGICA | O46: 11 | Q46: 55 | T46: =V15+V17+V19+V21+V23+V25+V27+V29+V31+V33+V39 -> 0 | V46: =(100/T46)*100%/(100/O46)*L46 -> 
L47: =IF(T47=6,"0",IF(T47<=5,"1",)) ->  | M47: =A36 -> DETERMINANTE AMBIENTAL | O47: 2 | Q47: 6 | T47: =J37+J39 ->  | V47: =(100/T47)*100%/(100/O47)*L47 -> 
A49: ='ANÁLISIS POR PROCESO'!BJ6 -> OBSERVACIONES SOBRE LA PROBLEMÁTICA DE EXPOSICIÓN A RIESGO POR MANIPULACIÓN MANUAL DE CARGAS
A50: =VLOOKUP(F5,TABLA,61,0) -> 0
A52: ='ANÁLISIS POR PROCESO'!BL6 -> ESTRATEGIAS GENERALES DE INTERVENCIÓN
A53: =VLOOKUP(F5,TABLA,63,0) -> 0

Sheet BIBLIOGRAFÍA
A2: Bibliografía
A4: Ciriello, Vincent M., and Snook, Stover H., (1991), “The design of manual handling tasks: revised tables of maximum acceptable weights and forces.” Ergonomics, 34(9), 1197-1213. Ergoweb Inc., (1995 – 2001), “Liberty Mutual Acceptable Pushing/Pulling Force Tool,” published in the Ergoweb Job Evaluator Toolbox™ software system, on http://www.ergoweb.com. ICONTEC, NTC 5693-1 Ergonomía. Manipulación manual parte 1: Levantar y transportar, Icontec, Colombia: 2010 ICONTEC, NTC 5693-2 Ergonomía. Manipulación manual parte 2: Empujar y halar, Icontec, Colombia: 2010 ISO 11228-1, Ergonomics – Manual handling – Part 1: Lifting and carrying. 2003 ISO 11228-2, Ergonomics – Manual handling – Part 2: Pushing and pulling. 2007 Ergonomic Design for People at Work: Vol. 2, de Eastman Kodak Company. Van Nostrand Reinhold, 2004

Sheet FORMATO CAMPO (hidden)
A2: Herramienta de Dx. Rápido Inicial Formato de campo
A4: INFORMACIÓN GENERAL DE LA EMPRESA
A6: RAZÓN SOCIAL | X6: FECHA
A8: NOMBRE DE LA PERSONA DE LA EMPRESA QUE ACOMPAÑA LA VISITA | P8: CARGO
A10: ='ANÁLISIS POR PROCESO'!D6 -> TAREA CRÍTICA DE MANIPULACIÓN MANUAL DE CARGAS | M10: ='ANÁLISIS POR PROCESO'!C6 -> PROCESO CRÍTICO | Y10: ='ANÁLISIS POR PROCESO'!F6 -> No. DE EXPUESTOS
A12: ='ANÁLISIS POR PROCESO'!E6 -> OBSERVACIONES DE LA TAREA | P12: NOTAS DE CAMPO
D15: ='ANÁLISIS POR PROCESO'!#REF! ->  | P15: ='ANÁLISIS POR PROCESO'!#REF! -> 
D16: ='ANÁLISIS POR PROCESO'!U6 -> ¿EL CONTENIDO DEL TRABAJO VARÍA DE MANERA QUE FLUCTUA LA EXPOSICIÓN A MMC? | G16: ='ANÁLISIS POR PROCESO'!W6 -> ¿EL CONTENIDO DE LA TAREA DETERMINA UNA ACUMULACIÓN DE LA EXPOSICIÓN A MMC EN LA JORNADA? | J16: ='ANÁLISIS POR PROCESO'!Y6 -> LEVANTAR Y TRANSPORTAR | M16: ='ANÁLISIS POR PROCESO'!AA6 -> EMPUJAR Y HALAR | P16: ='ANÁLISIS POR PROCESO'!#REF! ->  | S16: ='ANÁLISIS POR PROCESO'!#REF! ->  | V16: ='ANÁLISIS POR PROCESO'!#REF! ->  | Y16: ='ANÁLISIS POR PROCESO'!#REF! -> 
J17: ='ANÁLISIS POR PROCESO'!Y7 -> FRECUENCIA | M17: ='ANÁLISIS POR PROCESO'!AA7 -> FRECUENCIA
D18: SI | G18: de 0 a 5% intermitente | J18: menos de 1 vez/min | M18: menos de 1 vez/min | P18: SI | S18: SI | V18: SI | Y18: SI
D19: NO | G19: de 0 a 5% repetidamente | J19: 1 vez/min | M19: 1 vez/min | P19: NO | S19: NO | V19: NO | Y19: NO
D20: NA | G20: de 6% a 25% intermitente | J20: 2 a 3 veces/min | M20: 2 a 3 veces/min | P20: NA | S20: NA | V20: NA | Y20: NA
G21: de 6% a 25% repetidamente | J21: igual o mas de 4 veces/min | M21: igual o mas de 4 veces/min
G22: de 26% a 50% intermitente | J22: No aplica | M22: No aplica
G23: de 26% a 50% repetidamente
G24: más del 51% intermitente
G25: más del 51% repetidamente
A27: ='ANÁLISIS POR PROCESO'!#REF! -> 
A28: ='ANÁLISIS POR PROCESO'!AD6 -> LEVANTAR Y TRANSPORTAR | P28: ='ANÁLISIS POR PROCESO'!AN6 -> EMPUJAR Y HALAR
A29: ='ANÁLISIS POR PROCESO'!AD7 -> ¿PESO DE LA CARGA? | D29: ='ANÁLISIS POR PROCESO'!AF7 -> ¿ACCESIBILIDAD VERTICAL Y HORIZONTAL A LA CARGA? | G29: ='ANÁLISIS POR PROCESO'!AH7 -> ¿DISTANCIA DE DESPLAZAMIENTO DE LA CARGA? | J29: ='ANÁLISIS POR PROCESO'!AJ7 -> ¿REQUERIMIENTOS DE GIRO MENORES A 45° EN LA MMC? | M29: ='ANÁLISIS POR PROCESO'!AL7 -> ¿DISEÑO DE AGARRES DE LAS CARGAS A MANIPULAR MANUALMENTE? | P29: ='ANÁLISIS POR PROCESO'!AN7 -> ¿FUERZA INICIAL? | S29: ='ANÁLISIS POR PROCESO'!AP7 -> ¿FUERZA SOSTENIDA? | V29: ='ANÁLISIS POR PROCESO'!AR7 -> ¿ACCESIBILIDAD VERTICAL Y HORIZONTAL AL PUNTO DE AGARRE? | Y29: ='ANÁLISIS POR PROCESO'!AT7 -> ¿DISTANCIA? | AB29: ='ANÁLISIS POR PROCESO'!AV7 -> ¿CARACTERÍSTICAS DEL OBJETO? (REFIERE AL DISPOSITIVO PARA TRANSPORTAR LA CARGA)
A30: menor o igual a 12,5Kg. | D30: Alcances dentro de los 70 y 130 cm. de altura y, 45 cm. de alcance | G30: menores o iguales a 1m. | J30: SI | M30: BUENO | P30: Requerimiento de empujar sin aplicar enviones de fuerza, dejando espacio < 1m. entre la carga y los pies, para iniciar el movimiento del objeto | S30: Requerimiento de empujar sin aplicar enviones de fuerza, dejando espacio < 1m. entre la carga y los pies, para sostener el movimiento del objeto | V30: Alcances dentro de los 90 y 110 cm. de altura y, 45 cm. de alcance | Y30: menor o igual a 2m. | AB30: Estado funcional de rodamientos, mecanismos y compartimentos
A31: menor o igual a 25Kg. existiendo hombres y mujeres | D31: Agarres por fuera de los 70 y 130 cm. de altura y, 45 cm. de alcance | G31: mayores a 1m. y menores o iguales a 2m. | J31: NO | M31: REGULAR | V31: Agarres por fuera de los 90 y 110 cm. de altura y, 45 cm. de alcance | Y31: mayor a 2m. y menor o igual a 8m. | AB31: Estado disfuncional de rodamientos, mecanismos y compartimentos
A32: menor o igual a 25Kg. existiendo solo hombres | D32: No aplica | G32: mayores a 2m. y menores o iguales a 4m. | J32: No aplica | M32: MALO | P32: Requerimiento de empujar y/o halar, aplicando enviones de fuerza y/o dejando amplio espacio entre la carga y los pies (>1m.) para iniciar el movimiento del objeto | S32: Requerimiento de empujar y/o halar, aplicando enviones de fuerza y/o dejando amplio espacio entre la carga y los pies (>1m.) para sostener el movimiento del objeto | V32: No aplica | Y32: mayor a 8m. y menor o igual a 15m. | AB32: No existe
A33: mas de 25Kg. existiendo solo hombres | G33: mayores a 4m. y menores o iguales a 10m. | M33: No aplica | Y33: mayor a 15m. y menor o igual a 30m. | AB33: No aplica
A34: mas de 25Kg. existiendo hombres y mujeres | G34: mayores a 10m. | P34: No aplica | S34: No aplica | Y34: mayor a 31m. y menor o igual a 45m.
A35: No aplica | G35: No aplica | Y35: mayor a 45m.
Y36: No aplica
D38: =CATEGORÍAS!V1 -> ¿EXISTENCIA DE AYUDAS MECÁNICAS? | J38: ='ANÁLISIS POR PROCESO'!AY6 -> ¿AYUDAS MECÁNICAS EXISTENTES?
D40: SI
D41: NO
D42: NA
A44: ='ANÁLISIS POR PROCESO'!#REF! ->  | K44: ='ANÁLISIS POR PROCESO'!#REF! -> 
A45: ='ANÁLISIS POR PROCESO'!BB6 -> ¿CONDICIONES DE ESPACIO, ORDEN Y LIMPIEZA FAVORABLES PARA MMC? | D45: ='ANÁLISIS POR PROCESO'!BD6 -> ¿CONFORT ASOCIADO A FAVORABLES CONDICIONES AMBIENTALES DURANTE LA MMC?
A47: SI | D47: SI
A48: NO | D48: NO

Sheet snook & ciriello resumen (hidden)
A1: FUERZA MÁXIMA INICIAL ACEPTABLE EN VIRTUD DE DISTANCIAS Y MÁXIMAS FRECUENCIAS
A3: Distancias en m. | B3: Frecuencias patron | C3: Newtons
C4: Hombre | F4: Mujer
C5: 144 | D5: 95 | E5: 64 | F5: 135 | G5: 89 | H5: 57
A6: 2 | B6: Hasta 10 veces/min | C6: 200 | D6: 210 | E6: 190 | F6: 140 | G6: 140 | H6: 210
A7: 8 | B7: Hasta 4 veces min | C7: 140 | D7: 160 | E7: 130 | F7: 150 | G7: 140 | H7: 110
A8: 15 | B8: 2,5 veces/min | C8: 160 | D8: 180 | E8: 150 | F8: 120 | G8: 110 | H8: 90
A9: 30 | B9: 1 vez/min | C9: 150 | D9: 170 | E9: 140 | F9: 120 | G9: 120 | H9: 110
A10: 45 | B10: 1 vez/min | C10: 130 | D10: 140 | E10: 120 | F10: 120 | G10: 120 | H10: 110
A11: 60 | B11: 1 vez/2 min | C11: 120 | D11: 140 | E11: 120 | F11: 120 | G11: 120 | H11: 100
